{"text_format":"2","workbook":"xlsx","n_sheets":3,"sheets":["Mitglieder ab Gründung, Nr.","Adressen","Mitglieder 2022"],"not_rendered":{"charts":3,"images":0,"macros":0,"external_links":0,"defined_names":6,"comments":0,"pivot_tables":0},"unopened":[],"bounds":{"document_bytes":16777216,"sheet_cells":100000,"run_cost":"one","rows_first":2000,"rows_last":500,"rows_between":2000,"halvings":0,"cell_chars":16384,"cell_head_chars":4096},"cells_cut":0,"cells_raw":0,"read":"whole","date_system":"1900"}

{"sheet":"Mitglieder ab Gründung, Nr.","index":0,"n_rows":75,"n_cols":13,"rows_kept":75,"cut":false,"hidden":false,"merged":[]}
[]
["Nr","Mitgliedsnr.","Institution/Verband/Verein/ natürliche Person","Art","Art","Anzahl","Legende"]
["1.","2007 - 1","Agrargenossenschaft Schmalkalden-Schwallungen e.G.","WISO","P",1,"P","Mitgliedschaft durch Teilnahme Gründungsversammlung",null,null,null,"WISO",{"$f":"SUMIF(D3:D69,D4,F3:F69)","v":25}]
["2.","2007 - 2","Biosphärenreservat Thüringer Rhön","WISO","P",1,"û","Mitgliedschaft durch Teilnahmeantrag",null,null,null,"Kom",{"$f":"SUMIF(D3:D69,D10,F3:F69)","v":36}]
["3.","2007 - 3","BUND Kreisverband Schmalkalden-Meiningen","WISO","P",1,"¤","Mitgliedschaft durch Beitragszahlung",null,null,null,"priv",{"$f":"SUMIF(D3:D70,D49,F3:F70)","v":5}]
[null,"xx"]
["4.","2007 - 5","DRK-Kreisverband Meiningen e.V.","WISO","û",1,null,"ausgetreten / Kündigung"]
["5.","2007 - 6","Evang. Luth. Superintendentur Bad Salzungen-Dermbach","WISO","P",1,null,"kommunale Mitglieder"]
["6.","2007 - 7","Evangelische Kirche in Mitteldeutschland (EKM) ohne Beitrag","WISO","P",1,null,"Landwirtschaftsbetrieb"]
["7.","2007 - 8","Gemeinde Breitungen","Kom","P",1,null,"WISO-Partner"]
["8.","2008 - 9","Gemeinde Einhausen","Kom","û",1]
["9.","2008 - 10","Gemeinde Ellingshausen","Kom","û",1]
["10.","2008 - 11","Gemeinde Obermaßfeld-Grimmenthal","Kom","û",1]
["11.","2007 - 12","Peter Spieß","priv","P",1]
["12.","2008 - 13","Gemeinde Ritschenhausen","Kom","û",1]
["13.","2007 - 14","Gemeinde Springstille","Kom","û",1]
["14.","2008 - 15","Gemeinde Vachdorf","Kom","û",1]
["15.","2008 - 16","Gemeinde Wölfershausen","Kom","û",1]
["16.","2007 - 17","Handwerkskammer Südthüringen","WISO","P",1]
["17.","2007 - 18","IHK Südthüringen","WISO","P",1]
["18.","2007 - 20","Landratsamt Schmalkalden-Meiningen","Kom","P",1]
["19.","2007 - 21","Landschaftspflege- und Agrarhöfe GmbH","WISO","P",1]
["20.","2007 - 22","Landschaftspflegeverband BR Thür. Rhön e.V.","WISO","P",1]
["21.","2007 - 23","LEB – Ländliche Erwachsenenbildung e.V.","WISO","P",1]
[null,"2007 - 24","ReFood GmbH (2016 ausgetreten)","WISO","P",0]
["22.","2007 - 25","Rhönforum e.V.","WISO","P",1]
["23.","2007 - 27","Stadt Meiningen","Kom","û",1]
["24.","2007 - 28","Stadt Oberhof","Kom","P",1]
["25.","2008 - 29","Stadt Steinbach-Hallenberg","Kom","û",1]
["26.","2007 - 30","Stadtverwaltung Schmalkalden","Kom","û",1]
["27.","2007 - 31","Stadtverwaltung Suhl","Kom","¤",1]
["28.","2007 - 33","AG Reichenhausen","WISO","P",1]
["29.","2007 - 34","Thüringer Landfrauenverband e.V.","WISO","¤",1]
["30.","2007 - 35","Umweltinfozentrum Meiningen e.V.","WISO","P",1]
["31.","2007 - 37","Verband für Landentwicklung und Flurneuordnung Thüringen","WISO","û",1]
["32.","2007 - 38","Verband Naturpark Thüringer Wald e.V.","WISO","P",1]
["33.","2007 - 39","Gemeinde Grabfeld","Kom","P",1]
["34.","2007 - 40","VG „Hohe Rhön“","Kom","û",1]
["35.","2007 - 41","VG „Salzbrücke“","Kom","P",1]
["36.","2008 - 43","Gemeinde Belrieth","Kom","û",1]
["37.","2008 - 44","Gemeinde Leutersdorf","Kom","û",1]
["38.","2008 - 45","Gemeinde Neubrunn","Kom","û",1]
["39.","2008 - 47","Einheitsgemeinde Schwallungen","Kom","û",1]
["40.","2008 - 48","Gemeinde Floh-Seligenthal","Kom","û",1]
["41.","2007 - 49","Kreisbauernverband Schmalkalden-Meiningen e.V.","WISO","¤",1]
["42.","2007 - 51","Gemeinde Rhönblick","Kom","P",1]
["43.","2008 - 53","Gemeindeverwaltung Trusetal","Kom","û",1]
["44.","2008 - 54"," Gemeinde Untermaßfeld","Kom","û",1]
["45.","2009 - 55"," Rainer Franke","priv","û",1]
["46.","2009 - 56","Gemeinde Wahns","Kom","û",1]
["47.","2009 - 57","Gemeinde Friedelshausen","Kom","û",1]
["48.","2009 - 58","Gemeinde Oepfershausen","Kom","û",1]
["49.","2009 - 59","Gemeinde Wallbach","Kom","û",1]
["50.","2009 - 60","Stadt Wasungen","Kom","û",1]
["51.","2009 - 61","Gemeinde Metzels","Kom","û",1]
["52.","2009 - 62","Gemeinde Mehmels","Kom","û",1]
["53.","2009 - 63","Gemeinde Hümpfershausen","Kom","û",1]
["54.","2009 - 64","Gemeinde Unterkatz","Kom","û",1]
["55.","2009 - 65","Gemeinde Walldorf","Kom","û",1]
["56.","2009 - 67","Pflege-Agrar-Genossenschaft e.G. Bettenhausen","WISO","û",1]
["57.","2011 - 68","forum Thüringer Wald e.V.","WISO","û",1]
["58.","2013 - 69","Kathrin Jäger (einschl. 2017 noch Mitglied)","priv","û",1]
["59.","2013 - 70","AGH Agrargesellschaft Herpf mbH, Herr Johannes Schmidt","WISO","û",1]
["60.","2014 - 71","Dr. Ursula Sillge (einschl. 2017 noch Mitglied)","priv","û",1]
["61.","2015 - 72","Nachbarschaftshilfe Meiningen e.V. (einschl. 2021 noch Mitglied)","WISO","û",1]
["62.","2015 - 73","Evangelische Kirche Meiningen (Frau Marwede)","WISO","û",1]
["63.","2015 - 74","Gemeinde Unterschönau","Kom","û",1]
["64.","2015 - 75","Trachtenverein Stepfershausen","WISO","û",1]
[null,"2016 - 76","Hohe Geba e.V.","WISO","û",1]
["65.","2018-77","Constanze Flemming","priv","û",1]
[null,null,null,"Anzahl:",null,{"$f":"SUM(F7:F70)","v":63}]
[]
[]
[]
["2016_12_06"]

{"sheet":"Adressen","index":1,"n_rows":73,"n_cols":21,"rows_kept":73,"cut":false,"hidden":false,"merged":[]}
["Lfd. Nr.","Instituition","Anrede2","Anrede","Titel","Vorname","Nachname","Straße","PLZ","Ort","Email","Telefon","Vorstand","Gesamt-\nvorstand","Revisor","Berater","Fachbeirat","Mitglieds-\nnummer","Zahlendes \nMitglied","Beitrag in €","Anmerkg Sbeih"]
[null,"Thüringer Verwaltung UNESCO Biosphärenreservat Rhön","Sehr geehrte","Frau",null,"Ulrike","Schade","Goethestraße 1",36466,"Dermbach OT Zella/Rhön","ulrike.schade@nnl.thueringen.de; nadja.thuerbeck@nnl.thueringen.de","036964 - 8683-30 0361-573923-338",0,0,0,1,0,"2007 - 2",0,0]
[null,"Thüringer Verwaltung UNESCO Biosphärenreservat Rhön","Sehr geehrte","Frau",null,"Nadja","Thürbeck","Goethestraße 1",36466,"Dermbach OT Zella/Rhön","nadja.thuerbeck@nnl.thueringen.de","0361-573923334",0,0,0,"V",0,"2007 - 2",0,0]
["1.","Gemeinde Belrieth","Sehr geehrter","Herr","Bürgermeister","Dieter","Antler","Hauptstr. 66",98617,"Belrieth","dieterantler@gmx.de",null,0,0,0,0,0,"2008 - 43",0,0]
["2.","Landschaftspflege-Agrarhöfe\nKaltensundheim/Rhön GmbH & Co. Vermögens KG","Sehr geehrter","Herr",null,"Dr. Harald","Bräutigam","Mittelsdorfer Straße 23",36452,"Kaltennordheim","schiefner@hdk-kaltensundheim.de; buchhaltung@hdk-kaltensundheim.de","036946 - 217-0",0,0,0,0,1,"2007 - 21",1,200]
["3.","Gemeinde Ellingshausen","Sehr geehrter","Herr","Bürgermeister","Reiner","Baumann","Dorfstr. 46",98617,"Ellingshausen","r.baumann@lra-sm.thueringen.de",null,0,0,0,0,0,"2008 - 10",0,0]
["4.","Gemeinde Vachdorf","Sehr geehrter","Herr","Bürgermeister","Andreas ","Baumann","Einhäuser Str. 3",98617,"Obermaßfeld-Grimmenthal","Andreas.baumann@oekozentrum-werratal.de","036949-41910",0,0,0,0,0,"2008 - 15",0,0]
["5.","Handwerkskammer Südthüringen","Sehr geehrter","Herr",null,"Christian","Beck","Rosa-Luxemburg-Str. 7-9    ",98527,"Suhl","christian.beck@hwk-suedthueringen.de","03681 - 370160",0,1,0,0,1,"2007 - 17",1,200,50]
["6.","Verwaltungsgemeinschaft Hohe Rhön","Sehr geehrter","Herr","Gemeinschaftsvorsitzender","Manfred","Beetz","Hauptstr. 18",36452,"Kaltennordheim","vghoherhoen@t-online.de",null,0,0,0,0,0,"2007 - 40",0,0]
["7.","Pflege-Agrar-Genossenschaft e.G. Bettenhausen","Sehr geehrter ","Herr",null,"Martin ","Berk","Teichweg 1  ",98617,"Rhönblick OT Bettenhausen","agrar-bettenhausen@t-online.de","036943 - 63216",1,1,0,0,0,"2009 - 67",1,200]
["8.","Gemeinde Unterkatz","Sehr geehrter","Herr","Bürgermeister","Daniel","Dietsch","Dörrensolzer Straße 7",98634,"Unterkatz","DanielDietsch@gmx.de",null,0,0,0,0,0,"2009 - 64",0,0]
["9.","Gemeinde Leutersdorf","Sehr geehrter","Herr","Bürgermeister","Frank","Ehrenberger","Kirchberg 1",98617,"Leutersdorf","frank.ehrenberger@gmail.com",null,0,0,0,0,0,"2008 - 44",0,0]
["10.","Stadtverwaltung Steinbach-Hallenberg","Sehr geehrter","Herr","Bürgermeister","Markus","Böttcher","Rathausplatz 2",98587,"Steinbach-Hallenberg","info@steinbach-hallenberg.de",null,0,0,0,0,0,"2008 - 29",0,0]
["11.","Rhönforum e.V.","Sehr geehrte","Frau",null,"Regina","Filler","Untere Röde 13",36466,"Dermbach","regina.filler@rhoenforum.de","036964 - 861170",0,1,0,0,1,"2007 - 25",1,50]
["12.",null,"Sehr geehrter","Herr",null,"Rainer","Franke","Zum Rosengarten 12",98631,"Grabfeld OT Bauerbach","franke-bauerbach@web.de","036945 - 50944",0,1,0,0,1,"2009 - 55",1,30]
["13.","Gemeinde Rhönblick","Sehr geehrter","Herr","Bürgermeister","Christoph","Friedrich","Marktgasse 106",98617,"Rhönblick OT Helmershausen","bauamt@gemeinde-rhoenblick.de; \neg.rb@gemeinde-rhoenblick.de","036943 – 2300 (oder 23021), 0170-2881347",0,0,0,0,0,"2007 - 51",0,0]
["14.","Stadtverwaltung Meiningen","Sehr geehrter","Herr","Bürgermeister","Fabian","Giesder","Schlossplatz 1",98617,"Meiningen","giesder@stadtmeiningen.de\n","03693 - 454-129\n03693 - 454-547 ",0,1,0,0,1,"2007 - 27",0,0]
["15.","Gemeinde Metzels","Sehr geehrter","Herr","Bürgermeister","Janko","Goldschmidt","Schulzenstraße 2",98639,"Gesamtvorstand","goja79@gmx.de, buergermeister@metzels.de","03693/ 890616",0,0,0,0,0,"2009 - 61",0,0]
["16.","Gemeinde Mehmels","Sehr geehrter","Herr","Bürgermeister","Renè","Gramann","Kirchgasse 11",98634,"Mehmels","rene.gramann@gmx.de",null,0,0,0,0,0,"2009 - 62",0,0]
["17.","Forum Thüringer Wald e.V.","Sehr geehrte","Frau",null,"Cornelia","Grimm","Bahnhofstraße 4-8",98527,"Suhl","grimm@forum-thueringer-wald.de","03681-362-231",0,0,0,0,0,"2011 - 68",1,50]
["18.","Gemeinde Wallbach","Sehr geehrter","Herr","Bürgermeister","Thomas","Hartung","Untere Hauptstr. 94",98639,"Wallbach","wallbach@bskk.de",null,0,0,0,0,0,"2009 - 59",0,0]
["19.","Agrargenossenschaft\nSchmalkalden-Schwallungen e. G.","Sehr geehrte","Frau",null,"Astrid","Hatzel","Asbacher Weg 14",98574,"Schmalkalden","a.hatzel@agrar-sm.de","03683 - 608561",0,0,0,0,0,"2007 - 1",1,200]
["20.","Landratsamt Schmalkalden-Meiningen","Sehr geehrte","Frau","Landrätin","Peggy","Greiser","Obertshäuser Platz 1          ",98617,"Meiningen","p.greiser@lra-sm.thueringen.de; d.klee@lra-sm.de",null,0,1,0,0,0,"2007 - 20",1,37614.9]
["21.","GFAW mbH\nRegionalstelle Suhl","Sehr geehrte","Frau",null,"Gabriele","Heymann","Bahnhofstraße 4-8",98527,"Suhl","gabriele.heymann@gfaw-thueringen.de","0361-2223-352",0,0,0,1,0,"keine",0,0]
["22.","Gemeinde Unterschönau","Sehr geehrter","Herr",null,"Rigobert","Höchenberger","Schulstraße 11",98587,"Unterschönau","R.Hoechenberger@gewas.de",null,0,0,0,0,0,"2015 - 74",0,0]
["23.","Gemeinde Obermaßfeld-Grimmenthal","Sehr geehrter","Herr","Bürgermeister","Martin ","Hofmann","Frankeninsel 1 ",98617,"Obermaßfeld-Grimmenthal","ma-hof@t-online.de",null,0,0,0,0,0,"2008 - 11",0,0]
["24.","Gemeindeverwaltung Floh-Seligenthal","Sehr geehrter","Herr","Bürgermeister","Ralf","Holland-Nell","Bahnhofstraße 4",98593,"Floh-Seligenthal","info@floh-seligenthal.de",null,0,0,0,0,0,"2008 - 48",0,0]
["25.","Gemeinde Wölfershausen","Sehr geehrte","Frau","Bürgermeisterin","Katrin","Hössel","Straße zum Hinterdorf 34",98631,"Grabfeld OT Wölfershausen","katrin.hoessel@gmx.de",null,0,0,0,0,0,"2008 - 16",0,0]
["26.","Stadtverwaltung Schmalkalden","Sehr geehrter","Herr","Bürgermeister","Thomas","Kaminski","Altmarkt 1",98574,"Schmalkalden","t.kaminski@schmalkalden.de","03683 - 667-114",0,1,0,0,1,"2007 - 30",0,0]
[null,"Stadtverwaltung Schmalkalden","Sehr geehrte","Frau",null,"Grit","Beuke","Altmarkt 1",98574,"Schmalkalden","G.Beuke@schmalkalden.de","03683-667211  0151-25361115",0,0,0,0,0,null,0,0]
[null,"VG Dolmar-Salzbrücke, Ast. Obermaßfeld-Grimmenthal ","Sehr geehrte","Frau",null,"Sonja","Kammler","Einhäuser Str. 3",98617,"Obermaßfeld-Grimmenthal","s.kammler@vg-ds.de","036946-286-22",0,0,0,0,0,"2007 - 41",0,0]
["27.","VG Dolmar-Salzbrücke","Sehr geehrter","Frau ","Gemeinschaftsvorsitzende","Manuela","Kühirt","Zella-Meininger-Straße 6",98547,"Schwarza","info@vg-ds.de; M.Kuehhirt@vg-ds.de","036843 - 792-11",0,1,0,0,1,"2007 - 41",0,0]
["28.","Stadt Wasungen","Sehr geehrter","Herr","Bürgermeister","Thomas","Kästner","Markt 7",98634,"Wasungen","rathaus@wasungen.de","VG: Herr M. Schilling: 03641-79448",0,0,0,0,0,"2009 - 60",0,0]
["29.","Gemeinde Friedelshausen","Sehr geehrter","Herr","Bürgermeister","Michael","Kirchner","Hauptstraße 14",98634,"Friedelshausen","jaeger_kirchner@yahoo.de",null,0,0,0,0,0,"2009 - 57",0,0]
["30.","Stadtverwaltung Brotterode-Trusetal","Sehr geehrter","Herr","Bürgermeister","Kay","Goßmann","Rathausstraße 7",98596,"Brotterode-Trusetal","k.gossmann@brotterode-trusetal.de \ninfo@brotterode-trusetal.de",null,0,0,0,0,0,"2008 - 53",0,0]
["31.","Gemeinde Hümpfershausen","Sehr geehrter","Herr","Bürgermeister","Manfred","Kümpel","Dorfstraße 15",98634,"Hümpfershausen","manfredkuempel@aol.com",null,0,0,0,0,0,"2009 - 63",0,0]
["32.","Landschaftspflegeverband\nBR Thüringische Rhön e. V.","Sehr geehrte","Frau",null,"Julia","Gombert","Pförtchen 15",36452,"Kaltennordheim","j.gombert@lpv-rhoen.de","036946 - 20656",0,1,1,0,1,"2007 - 22",1,50]
["33.","Agrargenossenschaft Reichenhausen e. G.","Sehr geehrter","Herr",null,"Matthias","Friedrich","Auf dem Elm 4",98634,"Reichenhausen ","ag-reichenhausen@gmx.de","036946-30205",0,1,0,0,1,"2007 - 33",1,200]
["34.","Evang. Kirche Meiningen","Sehr geehrte","Frau","Superintendentin","Beate","Marwede","Neu-Ulmer-Str. 25b",98617,"Meiningen","suptur@ev-kirche-meiningen.de",null,0,0,0,0,0,"2015 - 73",1,200]
["35.","LEB – Ländliche Erwachsenenbildung e.V.","Sehr geehrte","Frau",null,"Sylvia","Müller","Hinter dem Bahnhof 12",99427,"Weimar","henry.birner@leb.de","03643-749816; 0173-5310799",0,0,0,0,0,"2007 - 23",1,50]
["36.","Verband für Landentwicklung und Flurneuordnung Thüringen","Sehr geehrte","Herr",null,"Jens","Peuke","An den Röthen 4",98617,"Meiningen","jens.peuke@vlf.thueringen.de ","0369350718-50",0,0,0,0,0,"2007 - 37",1,50]
["37.","Gemeindeverwaltung Schwallungen ","Sehr geehrte","Frau","Bürgermeisterin","Martina","Pehlert","Lindenhöhe 10",98590,"Schwallungen","gemeindeschwallungen@t-online.de",null,0,0,0,0,0,"2008 - 47",0,0]
["38.","Gemeinde Walldorf","Sehr geehrte","Frau","Bürgermeisterin","Ute","Pfeiffer","Kressehof 1",98639,"Walldorf","walldorf@ortsteil.meiningen.de",null,0,0,0,0,0,"2009 - 65",0,0]
["39.","Gemeinde Untermaßfeld","Sehr geehrter","Herr","Bürgermeister","Rolf","Pohland","Teichstraße 5 a",98617,"Untermaßfeld","rolfpohland@outlook.com",null,0,0,0,0,0,"2008 - 54",0,0]
["40.","Trachtenverein Stepfershausen","Sehr geehrter","Herr",null,"Winfried","Rauch","Viedegarten 1",98617,"Stepfershausen","rauchstepf@gmx.net","036943 - 63646",0,1,0,0,1,"2015 - 75",1,50]
["41.","Gemeinde Springstille","Sehr geehrter","Herr","Bürgermeister","Hans-Gert","Reich","Hergeser Weg 1",98587,"Springstille","buergermeister@springstille.de; gemeindeverwaltung@springstille.de ",null,0,0,0,0,0,"2007 - 14",0,0]
["44.","Thüringer Forstamt Schmalkalden","Sehr geehrter","Herr","Forstamtsleiter","Dr. Dominik","Hessenmöller","Schlossberg 11",98574,"Schmalkalden","forstamt.schmalkalden@forst.thueringen.de; Dominik.Hessenmoeller@forst.thueringen.de","03683 - 69320",0,0,0,1,0,"keine",0,0]
["42.","Gemeinde Breitungen","Sehr geehrter","Herr","Bürgermeister","Ronny","Römhild","Rathausstr. 24",98597,"Breitungen","info@breitungen.de","Frau Schuster: 036848-88217; Herr Wirthwein 036848-88220",0,0,0,0,0,"2007 - 8",0,0]
["46.","Landesamt für Landwirtschaft und Ländlichen Raum","Sehr geehrte","Frau",null,"Dr. Annelie","Reiter","Frankental 1",98617,"Meiningen","annelie.reiter@tlllr.thueringen.de","0361 57 4172 231 ",0,0,0,1,0,"keine",0,0]
[null,"Landesamt für Landwirtschaft und Ländlichen Raum","Sehr geehrter","Herr",null,"Sascha","Köpf","Frankental 1",98617,"Meiningen","sascha.koepf@tlllr.thueringen.de",null,0,0,0,1,0,"keine",0,0]
["43.","Stadtverwaltung Steinbach-Hallenberg","Sehr geehrte","Frau",null,"Silke","Röser","Rathausplatz 2",98587,"Steinbach-Hallenberg","s.roeser@steinbach-hallenberg.de","036847 - 38013",1,1,0,0,0,"2008 - 29",0,0]
["44.","Gemeinde Wahns","Sehr geehrte","Frau","Bürgermeisterin","Susanne","Rückert","Gartenstraße 1",98634,"Wahns","rueckert-falko@t-online.de",null,0,0,0,0,0,"2009 - 56",0,0]
["45.","Gemeinde Ritschenhausen","Sehr geehrter","Herr","Bürgermeister","Felix Jacob","Winkel","Paul-Motz-Str. 10a",98617,"Ritschenhausen","f.j.winkel@ritschenhausen.info","036949-4126-31",0,0,0,0,0,"2008 - 13",0,0]
["46.","IHK Südthüringen","Sehr geehrter","Herr",null,"Jan","Scheftlein","Hauptstraße 33              ",98529,"Suhl-Mäbendorf","scheftlein@suhl.ihk.de","03681 - 362-210",1,1,0,0,0,"2007 - 18",1,200,50]
["47.","Gemeinde Neubrunn","Sehr geehrter","Herr","Bürgermeister","Martin ","Schellenberger","Vorstadtstr. 2",98617,"Neubrunn","martin_schellenberger@t-online.de",null,0,0,0,0,0,"2008 - 45",0,0]
["48.","Gemeinde Oepfershausen","Sehr geehrter","Herr","Bürgermeister","Mario","Wilk","Beckengasse 2",98634,"Oepfershausen","gemeinde-oepfershausen@gmx.de","036940-50300",0,0,0,0,0,"2009 - 58",0,0]
["49.","AGH Agrargesellschaft Herpf mbH","Sehr geehrter","Herr",null,"Johannes","Schmidt","Rippershäuser Str. 16",98639,"Rippershausen","post@agrar-herpf.de; schmidt@agrar-herpf.de","03693-5050815",1,1,0,0,0,"2013 - 70",1,200]
["50.","DRK-Kreisverband Meiningen e.V.","Sehr geehrter","Herr",null,"Matthias","Schneider","Neu-Ulmer-Straße 5                    ",98617,"Meiningen","drk@drk-meiningen.de","03693 - 449512",0,1,0,0,1,"2007 - 5",1,50]
["51.","Stadtverwaltung Oberhof","Sehr geehrter","Herr","Bürgermeister","Thomas","Schulz","Zellaer Straße 10",98559,"Oberhof","info@stadt-oberhof.de",null,0,0,0,0,0,"2007 - 28",0,0]
["52.","Gemeinde Grabfeld","Sehr geehrter","Herr","Bürgermeister","Christian","Seeber","Hauptstraße 28",98631,"Grabfeld OT Rentwertshausen","c.seeber@grabfeld.de","036944 - 5820",0,1,0,0,1,"2007 - 39",0,0]
["53.","Evang. Luth. Superintendentur Bad Salzungen-Dermbach","Sehr geehrter","Herr",null,"Alfred","Spekker","Reichenhäuser Str. 6",98634,"Frankenheim","pfarramt-frankenheim@t-online.de","036946-32104",0,1,0,0,1,"2007 - 6",1,200]
["54.",null,"Sehr geehrter","Herr",null,"Klaus","Thielemann","Haupstraße 29",98590,"Rosa","klaus-thielemann@t-online.de","036968-639869",1,1,0,0,0,"2019 - 78",1,30]
["55.","Verband Naturpark Thüringer Wald e.V.","Sehr geehrte","Frau",null,"Elke","Tietz","Rennsteigstraße 18., OT Friedrichshöhe",98673,"Eisfeld","e.tietz@naturpark-thueringer-wald.de","036704 - 709914",0,1,1,0,1,"2007 - 38",1,50]
["56.","Stadtverwaltung Suhl","Sehr geehrter","Herr","Oberbürgermeister","André","Knapp","Marktplatz 1",98527,"Suhl","buero-ob@stadtsuhl.de","03681 - 742415",0,1,0,0,1,"2007 - 31",1,2521.1999999999998]
[null,"Stadtverwaltung Suhl","Sehr geehrte","Frau",null,"Susanne","Ludwig","Marktplatz 1",98527,"Suhl","susanne.ludwig@stadtsuhl.de","03681-742745",0,0,0,0,0,"2007 - 31",0,0]
["57.","BUND Kreisverband Schmalkalden-Meiningen e.V.","Sehr geehrter","Herr",null,"Thomas","Wey","Wintergasse 8",98617,"Meiningen","thomas.wey@bund.net.","03693 - 42012",0,1,0,0,1,"2007 - 3",1,50]
["58.","Regionalbauernverband Südthüringen (RBV) e. V.","Sehr geehrte","Frau",null,"Sindy","Brückner","Friedrich-Rückert-Straße 14",98646,"Hildburghausen","sindy.brueckner@tbv-erfurt.de; region.sued@tbv-erfurt.de","03685 - 682528          ",0,1,0,0,1,"2007 - 49",1,50]
["59.","Gemeinde Einhausen","Sehr geehrte","Frau ","Bürgermeisterin","Uta","Zickler","Einhäuser Str. 3",98617,"Obermaßfeld-Grimmenthal","zickler@arcor.de",null,0,0,0,0,0,"2008 - 9",0,0]
["60.","Umweltinfozentrum Meiningen e.V.","Sehr geehrte Damen und Herren",null,null,"Helga","Suß","Käthe Kollwitz Straße 12",98617,"Untermaßfeld","sussus@gmx.de","036949/21260               015223426015",0,0,0,0,0,"2007 - 35"]
["61.","Hohe Geba e.V.","Sehr geehrter","Herr",null,"Christoph","Friedrich","Marktgasse 106",98617,"Rhönblick","cf.rhoenblick@gmail.com","036943 – 2300 (oder 23021), 0170-2881347",1,1,0,0,0,"2015 - 76",1,50]
["62.",null,"Sehr geehrte","Frau",null,"Constanze","Flemming","Schwarzaer Straße 23",98547,"Christes","info@greenland-ranch.de","036844-30467; 01716087034",0,0,0,0,0,"2018-77",1,30]
["63.",null,"Sehr geehrter","Herr",null,"René","Kindermann","Lutherstraße 19",98634,"Wasungen OT Metzels","info@pferdehof-kindermann.de","03693/ 890905 0171-2034046",0,0,0,0,0,"2020-79",1,30]
[{"$nulls":10},"Summe:",null,{"$f":"SUM(M2:M72)","v":6},{"$f":"SUM(N2:N72)","v":23},{"$f":"SUM(O2:O72)","v":2},{"$f":"SUM(P2:P72)","v":5},{"$f":"SUM(Q2:Q72)","v":17},{"$f":"SUM(R2:R70)","v":0},{"$f":"SUM(S2:S72)","v":26},{"$f":"SUM(T2:T72)","v":42606.1}]

{"sheet":"Mitglieder 2022","index":2,"n_rows":66,"n_cols":18,"rows_kept":66,"cut":false,"hidden":false,"merged":[]}
["Nr.","Mitgliedsnr.","Institution/Verband/Verein/ natürliche Person","Art","Anzahl","G.-vorstand alt (max. 25)","Gesamtvorstand ab 04.12.2019"]
["1.","2007 - 1","Agrargenossenschaft Schmalkalden-Schwallungen e.G.","privat",1,1,0]
["2.","2007 - 2","Biosphärenreservat Thüringer Rhön","öffentlich",1,1,0,{"$nulls":9},"Gesamtvorstand neu","Anzahl Mitglieder GS"]
["3.","2007 - 3","BUND Kreisverband Schmalkalden-Meiningen","Zivilgesellschaft",1,1,1,{"$nulls":9},"Öffentlich",{"$f":"SUMIF(D2:D62,D8,G2:G62)","v":10}]
["4.","2007 - 5","DRK-Kreisverband Meiningen e.V.","Zivilgesellschaft",1,1,1,{"$nulls":9},"Privat",{"$f":"SUMIF(D2:D62,D2,G2:G62)","v":5}]
["5.","2007 - 6","Evang. Luth. Superintendentur Bad Salzungen-Dermbach","öffentlich",1,1,1,{"$nulls":9},"Zivilgesellschaft",{"$f":"SUMIF(D2:D62,D20,G2:G62)","v":9}]
["6.","2007 - 7","Evangelische Kirche in Mitteldeutschland (EKM)","öffentlich",1,0,0]
["7.","2007 - 8","Gemeinde Breitungen","öffentlich",1,0,0,"Verein:","Anzahl Mitglieder RAG"]
["8.","2008 - 9","Gemeinde Einhausen","öffentlich",1,0,0,"Öffentlich",{"$f":"SUMIF(D2:D64,D8,E2:E64)","v":42}]
["9.","2008 - 10","Gemeinde Ellingshausen","öffentlich",1,0,0,"Privat",9]
["10.","2008 - 11","Gemeinde Obermaßfeld-Grimmenthal","öffentlich",1,0,0,"Zivilgesellschaft",{"$f":"SUMIF(D2:D62,D29,E2:E62)","v":13}]
["11.","2008 - 13","Gemeinde Ritschenhausen","öffentlich",1,0,0]
["12.","2007 - 14","Gemeinde Springstille","öffentlich",1,0,0]
["13.","2008 - 15","Gemeinde Vachdorf","öffentlich",1,0,0]
["14.","2008 - 16","Gemeinde Wölfershausen","öffentlich",1,0,0]
["15.","2007 - 17","Handwerkskammer Südthüringen","öffentlich",1,1,1]
["16.","2007 - 18","IHK Südthüringen","öffentlich",1,1,1]
["17.","2007 - 20","Landratsamt Schmalkalden-Meiningen","öffentlich",1,1,1]
["18.","2007 - 21","Landschaftspflege- und Agrarhöfe GmbH","privat",1,1,1]
["19.","2007 - 22","Landschaftspflegeverband BR Thür. Rhön e.V.","Zivilgesellschaft",1,1,1]
["20.","2007 - 23","LEB – Ländliche Erwachsenenbildung e.V.","Zivilgesellschaft",1,0,0]
["21.","2007 - 25","Rhönforum e.V.","Zivilgesellschaft",1,1,1]
["22.","2007 - 27","Stadt Meiningen","öffentlich",1,1,1]
["23.","2007 - 28","Stadt Oberhof","öffentlich",1,0,0]
["24.","2008 - 29","Stadt Steinbach-Hallenberg","öffentlich",1,1,1]
["25.","2007 - 30","Stadtverwaltung Schmalkalden","öffentlich",1,1,1]
["26.","2007 - 31","Stadtverwaltung Suhl","öffentlich",1,1,1]
["27.","2007 - 33","AG Reichenhausen","privat",1,1,1]
["28.","2007 - 34","Thüringer Landfrauenverband e.V.","Zivilgesellschaft",1,1,1]
["29.","2007 - 35","Umweltinfozentrum Meiningen e.V.","Zivilgesellschaft",1,0,0]
["30.","2007 - 37","Verband für Landentwicklung und Flurneuordnung Thüringen","öffentlich",1,0,0]
["31.","2007 - 38","Verband Naturpark Thüringer Wald e.V.","Zivilgesellschaft",1,1,1]
["32.","2007 - 39","Gemeinde Grabfeld","öffentlich",1,1,1]
["33.","2007 - 40","VG „Hohe Rhön“","öffentlich",1,0,0]
["34.","2007 - 41","VG „Salzbrücke“ (Dolmar-Salzbrücke)","öffentlich",1,1,1]
["35.","2008 - 43","Gemeinde Belrieth","öffentlich",1,0,0]
["36.","2008 - 44","Gemeinde Leutersdorf","öffentlich",1,0,0]
["37.","2008 - 45","Gemeinde Neubrunn","öffentlich",1,0,0]
["38.","2008 - 47","Einheitsgemeinde Schwallungen","öffentlich",1,0,0]
["39.","2008 - 48","Gemeinde Floh-Seligenthal","öffentlich",1,0,0]
["40.","2007 - 49","Kreisbauernverband Schmalkalden-Meiningen e.V.","Zivilgesellschaft",1,1,1]
["41.","2007 - 51","Gemeinde Rhönblick","öffentlich",1,0,0]
["42.","2008 - 53","Stadt Brotterode-Trusetal","öffentlich",1,0,0]
["43.","2008 - 54","Gemeinde Untermaßfeld","öffentlich",1,0,0]
["44.","2009 - 55","Rainer Franke","privat",1,1,1]
["45.","2009 - 56","Gemeinde Wahns","öffentlich",1,0,0]
["46.","2009 - 57","Gemeinde Friedelshausen","öffentlich",1,0,0]
["47.","2009 - 58","Gemeinde Oepfershausen","öffentlich",1,0,0]
["48.","2009 - 59","Gemeinde Wallbach","öffentlich",1,0,0]
["49.","2009 - 60","Stadt Wasungen","öffentlich",1,0,0]
["50.","2009 - 61","Gemeinde Metzels","öffentlich",1,0,0]
["51.","2009 - 62","Gemeinde Mehmels","öffentlich",1,0,0]
["52.","2009 - 63","Gemeinde Hümpfershausen","öffentlich",1,0,0]
["53.","2009 - 64","Gemeinde Unterkatz","öffentlich",1,0,0]
["54.","2009 - 65","Gemeinde Walldorf","öffentlich",1,0,0]
["55.","2009 - 67","Pflege-Agrar-Genossenschaft e.G. Bettenhausen","privat",1,0,1]
["56.","2011 - 68","forum Thüringer Wald e.V.","Zivilgesellschaft",1,0,0]
["57.","2013 - 70","AGH Agrargesellschaft Herpf mbH, Herr Johannes Schmidt","privat",1,1,1]
["58.","2015 - 73","Evangelische Kirche Meiningen (Frau Marwede)","Zivilgesellschaft",1,0,0]
["59.","2015 - 74","Gemeinde Unterschönau","öffentlich",1,0,0]
["60.","2015 - 75","Trachtenverein Stepfershausen","Zivilgesellschaft",1,0,1]
["61.","2016 - 76","Fremdenverkehrsverein Geba e.V./ Antrag in Bearbeitung","Zivilgesellschaft",1,0,1]
["62.","2017 - 76","Constanze Flemming","privat",1,0,0]
["63.","2017 - 76","Klaus Thielemann","privat",1,0,0]
["64.",null,"Rene Kindermann","Privat",1,null,0]
[{"$nulls":4},{"$f":"SUM(E2:E65)","v":64},{"$f":"SUM(F2:F62)","v":23},{"$f":"SUM(G2:G62)","v":24}]